Cogmind - Beta 16 @@@ ROGUE MODE // 2025.11.03 @ 10:45:02 Player: Carcosa Result: Destroyed by P-60 Hacker with Shock Rifle Performance ------------- Evolutions (3) 1500 Regions Visited (5) 1000 Robots Destroyed (32) 160 Value Destroyed (1067) 1067 Prototype IDs (4) 80 Alien Tech Used (0) 0 Bonus (0) 0 TOTAL SCORE: 3807 Bonus ------- None Cogmind --------- Core Integrity 0/700 Matter 140/300 Energy 88/100 System Corruption 3% Temperature Cool (0) Movement Core (250) Ox4 Location -7/Factory Parts ------- > --- POWER (1) -------- (None) > --- PROPULSION (4) --- (None) > --- UTILITY (5) ------ Medium Storage Unit Improved Signal Interpreter Core Analyzer > --- WEAPON (3) ------- Gauss Rifle > --- INVENTORY (10) --- Micro Nuclear Core Improved Heat Sink Trap Scanner Improved Targeting Computer Heavy Particle Cannon Peak State ------------ > --- POWER ------------ Heavy Deuterium Engine > --- PROPULSION ------- Light Treads Aluminum Leg Armored Wheel > --- UTILITY ---------- Medium Storage Unit Improved Signal Interpreter Improved Targeting Computer Heavy Armor Plating > --- WEAPON ----------- Flak Gun Katana > --- INVENTORY -------- Light Nuclear Core Improved Heat Sink Trap Scanner Light Armor Plating Heavy Particle Cannon Gauss Rifle Gauss Rifle [Rating: 30] Favorites ----------- Power Ion Engine Engine Ion Engine Power Core Light Nuclear Core Propulsion Armored Wheel Treads Light Treads Leg Carbon-fiber Leg Wheel Armored Wheel Hover Unit Gravmag System Utility Improved Targeting Computer Device Seismic Detector Storage Medium Storage Unit Processor Improved Targeting Computer Protection Improved Light Armor Plating Weapon Autogun Energy Gun Shock Rifle Energy Cannon Heavy Particle Cannon Ballistic Gun Autogun Ballistic Cannon Slug Cannon Launcher Grenade Launcher Slashing Weapon Axe Build | -11 -10 -10 -10 -8 -7 ------- Run | Yrd Mat Min Sub Mat Fac Slots Evolved 6 | . . . . 4 2 Power . | . . . . . . Propulsion 2 | . . . . 2 . Utility 3 | . . . . 2 1 Weapon 1 | . . . . . 1 Parts Attached 49 | 6 5 1 1 21 15 Power 6 | 1 . . . 2 3 Engine 5 | 1 . . . 1 3 Core 1 | . . . . 1 . Reactor . | . . . . . . Propulsion 16 | 2 2 . . 8 4 Treads 2 | . . . . 1 1 Leg 7 | 2 . . . 4 1 Wheel 5 | . 2 . . 3 . Hover 2 | . . . . . 2 Flight . | . . . . . . Utility 12 | 1 1 . . 6 4 Device 2 | . . . . . 2 Storage 2 | 1 . . . 1 . Processor 3 | . 1 . . 1 1 Hackware . | . . . . . . Protection 5 | . . . . 4 1 Artifact . | . . . . . . Weapon 15 | 2 2 1 1 5 4 Energy Gun 3 | 2 . . . . 1 Energy Cannon 1 | . . . . 1 . Ballistic Gun 7 | . 2 . . 3 2 Ballistic Cannon 1 | . . 1 . . . Launcher 1 | . . . 1 . . Special Weapon . | . . . . . . Impact Weapon . | . . . . . . Slashing Weapon 2 | . . . . 1 1 Piercing Weapon . | . . . . . . Special Melee Weapon . | . . . . . . Unidentified Prototypes 2 | . . . . . 2 Parts Lost 27 | . . . . 12 15 Power 4 | . . . . 2 2 Propulsion 12 | . . . . 7 5 Utility 5 | . . . . 1 4 Weapon 6 | . . . . 2 4 Highest Loss Streak 10 | . . . . 7 10 To Critical Strikes . | . . . . . . Average Backups 7 | 1 7 8 7 7 8 Power . | . 1 1 1 . 1 Propulsion 2 | . 3 4 3 1 . Utility 1 | . . . . 1 3 Weapon 3 | . 2 2 2 3 3 Tool/Special . | . . . . . . Unused Backups 8 | . 3 1 1 . 3 Power 1 | . . . . . 1 Propulsion 2 | . 2 . . . . Utility 3 | . . . 1 . 2 Weapon 2 | . 1 1 . . . Tool/Special . | . . . . . . Average Slot Usage (%) 81 | . 98 100 100 78 64 Engine 8 | . 14 14 14 5 4 Core 1 | . . . . 2 1 Leg 5 | . 2 . . 6 9 Wheel 15 | . 25 28 28 18 1 Device 1 | . . . . . 2 Storage 10 | . 14 14 14 9 7 Processor 13 | . 13 14 14 11 16 Protection 3 | . . . . 6 5 Ballistic Gun 13 | . 24 18 14 10 9 Ballistic Cannon 2 | . . 9 11 1 . Slashing Weapon 1 | . . . . 3 . Peak Build Rating 30 | 6 13 15 15 28 30 Average Rating 19 | 4 12 14 14 21 25 On Entrance 12 | . 6 13 15 15 28 Avg Prop Armor Cover (%) 6 | . . . . 5 7 Naked Turns . | . . . . . . Heaviest Build 42 | 13 16 20 20 39 42 Greatest Support 48 | 20 24 24 24 48 30 Greatest Overweight (x) 6 | 1 . . . 6 5 Average Overweight (x) . | . . . . . . Largest Inventory Capacity 10 | 8 8 8 8 10 10 Average Capacity 9 | 7 8 8 8 9 10 Most Carried 10 | 4 8 8 8 10 10 Average Carried 8 | 1 7 7 7 7 9 Final Capacity 10 | 8 8 8 8 10 10 Final Carried 10 | 4 8 8 8 10 5 Class Distribution -------------------- 67% | Mutant 32% | Scavenger-Mutant Dominant Class ---------------- Mutant | -10/Materials Mutant | -10/Mines Mutant | -10/Subcaves Mutant | -8/Materials Scavenger-Mutant | -7/Factory Resources | -11 -10 -10 -10 -8 -7 ----------- Run | Yrd Mat Min Sub Mat Fac Matter Collected 1186 | 200 . 145 93 327 421 Remotely . | . . . . . . Salvage Created 959 | . . 69 172 273 445 Parts 68 | . . 12 15 13 28 Haulers Intercepted 1 | . . . . . 1 Recyclers Shooed . | . . . . . . Parts Field Recycled . | . . . . . . Retrieved Matter . | . . . . . . Parts Self-Destructed 5 | . . . 5 . . Prevented . | . . . . . . Parts Restored . | . . . . . . Kills | -11 -10 -10 -10 -8 -7 ------- Run | Yrd Mat Min Sub Mat Fac Combat Hostiles Destroyed 28 | . . 6 6 8 8 Melee 4 | . . . . 2 2 Guns 10 | . . 3 . 3 4 Cannons 6 | . . 3 1 2 . AOE 8 | . . . 5 1 2 Classes Destroyed 11 | . . 1 1 3 6 Worker 1 | . . . . . 1 Builder 1 | . . . . . 1 Tunneler 1 | . . . . . 1 Hauler 1 | . . . . . 1 Swarmer 8 | . . 6 . 2 . Grunt 6 | . . . . 3 3 Sentry 3 | . . . . 1 2 Specialist 1 | . . . . . 1 Hunter 2 | . . . . 2 . Programmer 2 | . . . . . 2 Subdweller 6 | . . . 6 . . Best Kill Streak 5 | . . 3 5 3 3 Combat Bots Only 5 | . . 3 5 3 2 Max Kills in Single Turn 2 | . . 1 2 2 2 Gunslinging . | . . . . . . Exploded 2 | . . . 2 1 1 Melee 1 | . . . . 1 1 Uniques/NPCs Destroyed . | . . . . . . Combat | -11 -10 -10 -10 -8 -7 -------- Run | Yrd Mat Min Sub Mat Fac Hostile Shots Fired 614 | . 1 21 16 226 350 Missed 193 | . . 2 6 54 131 Hits 421 | . 1 19 10 172 219 Projectile 421 | . 1 19 10 172 219 Critical Strikes 12 | . . . 1 6 5 Damage Taken 5004 | . 13 158 198 2297 2338 Core 1254 | . . 33 59 458 704 Absorbed by Shields . | . . . . . . Regen/Repaired (Parts) 74 | . . . . 74 . Core Remaining (%) 59 | 100 . . 63 16 . Volleys Fired 82 | . 6 10 7 28 31 Largest 2 | . 2 2 2 2 2 Hottest 103 | . 46 63 63 103 58 Shots Fired 129 | . 12 18 13 42 44 Gun 90 | . 12 10 7 20 41 Cannon 28 | . . 8 2 18 . Launcher 11 | . . . 4 4 3 Special . | . . . . . . Kinetic 108 | . 12 18 9 30 39 Thermal 8 | . . . . 8 . Explosive 11 | . . . 4 4 3 Electromagnetic 2 | . . . . . 2 Robot Hit Streak 9 | . 2 7 5 5 9 Robot Miss Streak 5 | . 4 5 1 4 4 Penetration Max 1 | . . . . . 1 Secondary Targets . | . . . . . . Shots Hit Robots 89 | . 5 11 7 24 42 Core Hits 63 | . . 6 8 12 37 Critical Kills 1 | . . . 1 . . Critical Parts Destroyed 1 | . . . . 1 . Critical Strikes 4 | . . . 1 1 2 Destroy 2 | . . . 1 1 . Sever 2 | . . . . . 2 Melee Attacks 20 | . . . . 10 10 Impact . | . . . . . . Slashing 20 | . . . . 10 10 Piercing . | . . . . . . Sneak Attacks . | . . . . . . Combat Hostiles . | . . . . . . Follow-up Attacks . | . . . . . . Damage Inflicted 2982 | . 74 213 657 793 1245 Guns 1233 | . 74 100 43 147 869 Cannons 337 | . . 113 23 201 . Explosions 1022 | . . . 591 257 174 Melee 390 | . . . . 188 202 Ramming . | . . . . . . Kinetic 1407 | . 74 213 66 223 831 Thermal 125 | . . . . 125 . Explosive 1022 | . . . 591 257 174 Electromagnetic 38 | . . . . . 38 Impact . | . . . . . . Slashing 390 | . . . . 188 202 Piercing . | . . . . . . Highest Corruption 2 | . . . . . 2 Average Corruption 1 | . . . . . 1 Corruption Purged . | . . . . . . Corruption Blocked . | . . . . . . Effects 1 | . . . . . 1 Matter Fused 1 | . . . . . 1 Overload Shots . | . . . . . . Overflow Damage 12 | . . 12 . . . Projectiles 12 | . . 12 . . . Explosions . | . . . . . . Melee . | . . . . . . Knockbacks 2 | . . 1 . 1 . Impact . | . . . . . . Kinetic 2 | . . 1 . 1 . Secondary . | . . . . . . Self-Inflicted Damage 51 | . . . . . 51 Shots 3 | . . . . . 3 Rammed . | . . . . . . Targets Rammed . | . . . . . . Kicked . | . . . . . . Crushed . | . . . . . . Highest Temperature 102 | . 12 42 . 102 18 Average Temperature 19 | . 5 14 . 27 7 Received Heat Transfer 926 | . 9 20 27 351 519 Siege Activations . | . . . . . . Martial Activations . | . . . . . . Shielding Activations . | . . . . . . Robots Disrupted . | . . . . . . Combat Hostiles . | . . . . . . Robots Corrupted . | . . . . . . Combat Hostiles . | . . . . . . Parts Fried . | . . . . . . Impact Corruptions . | . . . . . . Robots Melted . | . . . . . . Combat Hostiles . | . . . . . . Parts Melted . | . . . . . . Heat Transferred 185 | . . . . 185 . Parts Sabotaged . | . . . . . . Parts Stolen . | . . . . . . Parts Stripped . | . . . . . . Power Chain Reactions . | . . . . . . Alert | -11 -10 -10 -10 -8 -7 ------- Run | Yrd Mat Min Sub Mat Fac Maximum Alert Level . | . . . . . . Low Security (%) 100 | 100 100 100 . 100 100 Level 1 . | . . . . . . Level 2 . | . . . . . . Level 3 . | . . . . . . Level 4 . | . . . . . . Level 5 . | . . . . . . High Security . | . . . . . . Max Security . | . . . . . . Peak Influence 170 | . 32 102 . 170 57 Initial 36 | . . 12 . . 36 Average 30 | . 1 39 . 63 14 Influence Increases 926 | . 47 142 . 452 285 Destroy 0b10 Robot/C 440 | . . 120 . 160 160 Destroy 0b10 Robot/NC 20 | . . . . . 20 Destroy Leader 112 | . . 20 . 50 42 Successful Hack 27 | . 2 . . 8 17 Disable Machine 15 | . . . . 15 . Destroy Structure 42 | . . 2 . 24 16 Partial Spotted 15 | . . . . 15 . Lose Combat Pursuer 255 | . 45 . . 180 30 Influence Decreases 906 | . 15 142 32 372 345 Entered New Map 81 | . . 20 17 . 44 Time Decay 608 | . 15 122 15 252 204 Lost Part 217 | . . . . 120 97 Squads Dispatched 7 | . 2 . . 2 3 Investigation 2 | . 1 . . 1 . Extermination 1 | . . . . . 1 Reinforcement 2 | . 1 . . 1 . Assault . | . . . . . . Garrison 2 | . . . . . 2 Intercept . | . . . . . . Searches Triggered . | . . . . . . Construction Impeded . | . . . . . . Haulers Reinforced . | . . . . . . Active Scanning Responses . | . . . . . . Cargo Convoy Interrupts 1 | . . . . . 1 Stealth | -11 -10 -10 -10 -8 -7 --------- Run | Yrd Mat Min Sub Mat Fac Distress Signals 5 | . 2 . . 3 . Communications Jammed . | . . . . . . Distress Signals . | . . . . . . Times Spotted 86 | . 10 7 11 33 25 Peak Tracking Total 17 | . 7 3 7 17 16 Tactical Retreats 7 | . 2 1 . 3 1 Traps | -11 -10 -10 -10 -8 -7 ------- Run | Yrd Mat Min Sub Mat Fac Traps Triggered 1 | . . . . . 1 Indirectly . | . . . . . . Trap Hack Attempts . | . . . . . . Triggered . | . . . . . . Disarmed . | . . . . . . Reprogrammed . | . . . . . . Reused . | . . . . . . Traps Extracted . | . . . . . . Installed . | . . . . . . Triggered . | . . . . . . Machines | -11 -10 -10 -10 -8 -7 ---------- Run | Yrd Mat Min Sub Mat Fac Machines Disabled 1 | . . . . 1 . Max in Single Turn 1 | . . . . 1 . Machines Repaired . | . . . . . . Machines Dismantled . | . . . . . . Machines Sabotaged . | . . . . . . Overloaded Fab Kills . | . . . . . . Hacking | -11 -10 -10 -10 -8 -7 --------- Run | Yrd Mat Min Sub Mat Fac Machines Accessed 9 | . 1 . . 3 5 Terminals 7 | . 1 . . 2 4 Fabricators . | . . . . . . Repair Stations 1 | . . . . 1 . Recycling Units 1 | . . . . . 1 Scanalyzers . | . . . . . . Garrison Access . | . . . . . . Total Hacks 26 | . 3 . . 10 13 Successful 17 | . 2 . . 6 9 Failed 9 | . 1 . . 4 4 Catastrophic . | . . . . . . Database Lockouts . | . . . . . . Manual . | . . . . . . Terminals 21 | . 3 . . 7 11 Fabricators . | . . . . . . Repair Stations 3 | . . . . 3 . Recycling Units 2 | . . . . . 2 Scanalyzers . | . . . . . . Garrison Access . | . . . . . . Terminal Hacks 13 | . 2 . . 3 8 Record 6 | . 2 . . . 4 Part Schematic 1 | . . . . . 1 Prototype ID Bank 1 | . . . . 1 . Alert Level 2 | . . . . 1 1 Hauler Manifests 1 | . . . . . 1 Zone Layout 2 | . . . . 1 1 Fabricator Hacks . | . . . . . . Repair Station Hacks 3 | . . . . 3 . Scan Component 2 | . . . . 2 . Repair 1 | . . . . 1 . Recycling Unit Hacks 1 | . . . . . 1 Retrieve Matter 1 | . . . . . 1 Scanalyzer . | . . . . . . Garrison Access Hacks . | . . . . . . Unauthorized Hacks . | . . . . . . Terminals . | . . . . . . Fabricators . | . . . . . . Repair Stations . | . . . . . . Recycling Units . | . . . . . . Scanalyzers . | . . . . . . Garrison Access . | . . . . . . Data Cores Recovered . | . . . . . . Used . | . . . . . . Hacking Detections 7 | . 1 . . 3 3 Full Trace Events 2 | . 1 . . 1 . Feedback Events . | . . . . . . Feedback Blocked . | . . . . . . Robot Schematics Acquired . | . . . . . . Robots Built . | . . . . . . Authchips . | . . . . . . Time . | . . . . . . Total Robot Build Rating . | . . . . . . Part Schematics Acquired 1 | . . . . . 1 Parts Built . | . . . . . . Authchips . | . . . . . . Time . | . . . . . . Total Part Build Rating . | . . . . . . Part Studies Acquired . | . . . . . . Parts Repaired 1 | . . . . 1 . Time 32 | . . . . 32 . Parts Recycled . | . . . . . . Recycled Matter . | . . . . . . Retrieved Matter . | . . . . . . Retrieved Components . | . . . . . . Parts Scanalyzed . | . . . . . . Part Schematics Acquired . | . . . . . . Parts Damaged . | . . . . . . Bothacking | -11 -10 -10 -10 -8 -7 ------------ Run | Yrd Mat Min Sub Mat Fac Used RIF Installer . | . . . . . . Robots Hacked . | . . . . . . Non-combat . | . . . . . . Combat . | . . . . . . Robot Hacks Applied . | . . . . . . Relay Couplers Released . | . . . . . . Fabnet Peak Effective % . | . . . . . . Robots Rewired . | . . . . . . Allies Hacked . | . . . . . . Hacks Repelled . | . . . . . . Allies | -11 -10 -10 -10 -8 -7 -------- Run | Yrd Mat Min Sub Mat Fac Total Allies . | . . . . . . Largest Group . | . . . . . . Highest-Rated Group . | . . . . . . Highest-Rated Ally . | . . . . . . Total Orders . | . . . . . . Ally Attacks . | . . . . . . Total Damage . | . . . . . . Kills . | . . . . . . Allies Corrupted . | . . . . . . Allies Melted . | . . . . . . Intel | -11 -10 -10 -10 -8 -7 ------- Run | Yrd Mat Min Sub Mat Fac Active Infowar (turns) 330 | . . . . . 330 Seismic 330 | . . . . . 330 Robot Analysis Total . | . . . . . . Derelict Logs Recovered 2 | . . 1 1 . . Drone Launches . | . . . . . . Drone Recoveries . | . . . . . . Exploration | -11 -10 -10 -10 -8 -7 ------------- Run | Yrd Mat Min Sub Mat Fac Turns Passed 2203 | 63 277 369 150 567 777 Spaces Moved 1701 | 44 212 357 137 363 588 Core 18 | 5 . . . 7 6 Treads 19 | . . . . 13 6 Legs 476 | 39 14 . . 126 297 Wheels 1005 | . 198 357 137 217 96 Hover 183 | . . . . . 183 Flight . | . . . . . . Fastest Speed 50 | 50 90 90 90 90 56 Average Speed 98 | 115 91 90 90 106 102 Slowest Speed 350 | 120 120 90 90 350 300 Overloaded Moves . | . . . . . . Propulsion Burnouts . | . . . . . . Robots Hopped . | . . . . . . Potential Cave-ins . | . . . . . . Cave-ins Triggered . | . . . . . . Exploration Rate (%) 27 | 4 31 66 14 34 14 Regions Visited 5 Branch Regions 2 Pre-discovered Areas . | . . . . . . Known Exits Taken 2 | . . 1 . 1 . Unknown Exits Taken 3 | 1 1 . 1 . . Scrap Searched . | . . . . . . Spaces Dug . | . . . . . . Terrain Destroyed 51 | . . 2 8 26 15 Melee . | . . . . . . Projectile 11 | . . 2 . 9 . AOE 40 | . . . 8 17 15 Terrain Rammed . | . . . . . . Walls Destroyed . | . . . . . . Machines Disabled . | . . . . . . Actions | -11 -10 -10 -10 -8 -7 --------- Run | Yrd Mat Min Sub Mat Fac Total 2061 | 53 283 389 150 483 703 Wait 133 | . 49 18 . 34 32 Move 1696 | 43 211 356 136 362 588 Hop . | . . . . . . Pick Up 36 | 4 8 2 1 14 7 Fast Attach 20 | 6 1 . . 5 8 Attach 24 | . . . . 14 10 Detach 7 | . . . . 2 5 Swap 24 | . 4 1 4 10 5 Drop 19 | . 4 2 2 4 7 Fire 82 | . 6 10 7 28 31 Melee 20 | . . . . 10 10 Ram . | . . . . . . Kick . | . . . . . . Crush . | . . . . . . Escape Stasis . | . . . . . . Rewire . | . . . . . . Trap . | . . . . . . Miscellaneous . | . . . . . . Route ------- -11/Scrapyard -10/Materials -10/Mines -10/Subcaves -8/Materials -7/Factory (discovered 1 exit: *Low) History --------- Turn | Location | Event 16 | -11/Scrapyard | Discovered new exit (range 14) 64 | -11/Scrapyard | Entered Materials 306 | -10/Materials | Build established: Mutant 329 | -10/Materials | Discovered new exit (range 14) 341 | -10/Materials | Entered Mines 452 | -10/Mines | A weapon hastily lodged in a ceiling crevice suddenly fell to the ground 599 | -10/Mines | Identified exit to Subcaves 610 | -10/Mines | Assembled infested the area 615 | -10/Mines | Assisted by a Guerilla fighting off Assembled 710 | -10/Mines | Entered Subcaves 711 | -10/Subcaves | Approached by a straggling Scientist 764 | -10/Subcaves | Ambushed by swarm of Subdwellers 772 | -10/Subcaves | Ambushed by Subdwellers from Twisted Machinery 772 | -10/Subcaves | Ambushed by Subdwellers from Twisted Machinery 833 | -10/Subcaves | Learned 2 Materials zone layouts 835 | -10/Subcaves | Discovered new exit (range 10) 860 | -10/Subcaves | Entered Materials 860 | -8/Materials | Evolved 4 slots: Propulsion x2, Utility x2 1063 | -8/Materials | Repaired Arm. Wheel? 1193 | -8/Materials | Lost 5 parts (1p3n1u) 1207 | -8/Materials | Core integrity fell below 50% 1252 | -8/Materials | Lost 7 parts (1p4n2w) 1389 | -8/Materials | Discovered new exit (range 13) 1392 | -8/Materials | Core integrity fell below 20% 1426 | -8/Materials | Identified exit to Factory 1427 | -8/Materials | Entered Factory 1427 | -7/Factory | Evolved 2 slots: Utility x1, Weapon x1 1536 | -7/Factory | Build established: Scavenger-Mutant 1545 | -7/Factory | Discovered new exit (range 16) 1656 | -7/Factory | Identified exit to Lower Caves 1788 | -7/Factory | Garrison activated, responded to threat 1890 | -7/Factory | Lost 3 parts (2n1w) 2106 | -7/Factory | Cargo convoy interrupted 2141 | -7/Factory | Core integrity fell below 50% 2173 | -7/Factory | Core integrity fell below 20% 2203 | -7/Factory | Garrison activated, responded to threat 2204 | -7/Factory | Destroyed by P-60 Hacker with Shock Rifle Last Messages --------------- K-01 Serf collects debris. Penetrated by Slug. K-01 Serf cleans the Assembly Bed. Slug penetrates Assembly Bed. Lgt. Ion Engine destroyed. R-06 Scavenger collects Wheel. Penetrated by Slug. K-01 Serf collects debris. Slug penetrates Assembly Bed. K-01 Serf collects debris. K-01 Serf cleans the Assembly Bed. Penetrated by Slug. Slug penetrates Door. Lgt. Armor Plating destroyed. Slug penetrates Wall. Arm. Wheel destroyed. K-01 Serf cleans the Pressure Siphon. P-60 Hacker calls for garrison reinforcements. ALERT: Activating Garrison Access F003. K-01 Serf cleans the Pressure Siphon. Map ----- +----------------------------------------------------+ | ##??????????????# ! """" """" | | ##??????????????# ######### """" """" | | ##??????????????# #???????# """ """" | | ##??????????????# #???????# """" """ | | ##????????????#######+########??# """ """" | | ##????????????# #??# """ """" | | +????????????# """ """ #??# [! | | ##????????????# "G" """ #??# [! | | ##????????????# " " """ #??# !! | | ##????????????# // #??## #####"#+####### | | #?????????????# * / #???# ## # | | #??????########################??# ## " # | | #??????# [* # #??# ## """ # | | #???? ?# |!# "T" #??# ## G # | | ##??? ?# """"""""" # #??# ## """ # | | ??? ?# | # #??# ## " # | | ##??# ?# """"""""" #####+######## ## # | | ????# ?# [ #?# ## """""" # | | ????# ?# """"""""" ### T" ## """""" # | | ????# ?# + " / """""" # | | ????# ## """"""""" ### ######### """""" # | | ##### ## #?# #???????# ? # | | # ## """"""""" #?###p###???????############?? | | # ## #???# #??######??????????????? | | # ########+########## # #??????????????? | | # @/ #??????????????? | | # a # #??????????????? | | + kk #??######??????????????? | | # """ ???????????????????? | | # """ a##############??????????????????? | | # """ #???????????????????????????????? | | # """ #???????????????????????????????? | | # #???????????????????????????????? | | # """ #???????????????????????????????? | | ##### ] "" #???????????????????????????????? | | ????# #???????????????????????????????? | | ???? #???????????????????????????????? | | ???#### #???????????????????????????????? | | ??????# """ #???????????????????????????????? | | ??????# """ ???????????????????????????????? | | ??????# "?? ???????????????????????????????? | | ??????# "????????????????????????????????????? | | ??????? ????????????????????????????????????? | | ??????? ??????????????????????????????????????? | | ?????????????????????????????????????????????????? | | ?????????????????????????????????????????????????? | | ?????????????????????????????????????????????????? | | ?????????????????????????????????????????????????? | | ?????????????????????????????????????????????????? | | ?????????????????????????????????????????????????? | +----------------------------------------------------+ Best States ------------- Heat Dissipation 34 Energy Generation 18 Energy Capacity 310 Matter Stores 240 Matter Capacity 300 Sight Range 16 Terrain Scan Density 10 Armor Coverage 800 Evasion (%) 55 Targeting Accuracy 6 Core Analysis 6 Recoil Reduction 1 Item Schematics ----------------- Core Analyzer | -7/Factory | Hacked Robot Schematics ------------------ None Fabricated ------------ Nothing Repaired ---------- Arm. Wheel | 26% | -8/Materials Studied --------- None Alien Tech Used ----------------- None Achievements -------------- Ghost 'Em I Have A Map? I Survived The Infestation Jackpot Made in Tau Ceti IV Please Form A Line Shopping List Troublemaker Challenges ------------ None Game ------ Seed LinearHeavyAmplifier Manual? 0 Play Time 01:16:01 Cumulative 4.3 hours Start 2025.10.31 @ 15:43:37 End 2025.11.03 @ 10:45:02 Sessions 3 Manual Loads 0 Difficulty Rogue Special Mode None Game No. 4 Rogue 4 Adventurer 0 Explorer 0 Win Type - Total 0 Types 0/0/0/0/0/0/0/0/0/0 Lore% 5 Gallery% 5 Achievement% 6 Wizard Run 0 Options --------- Layout 1 ASCII 0 Keyboard 0 Movement Mouse Keybinds 0 Fullscreen 1 Font 32/SmallcapsGlow Map View 50x35 Zoom Use 0% Tactical HUD 0 Map Filters NONE Filters NONE Steam 1 RUN: f86b4ab9-0300-4e42-bea2-5293f8f3fef6